bitfinex-derivatives/quotes_ETHF0:USTF0_20250114
["timestamp","ask_amount","ask_price","bid_price","bid_amount"]
[1736846649447,0.31061,3220.7,3220.6,41.11059]
[1736846650150,4.67013,3221.0,3220.9,0.31058]
[1736846650151,0.002,3221.0,3220.9,0.31058]
[1736846650356,3.9379,3222.6,3221.3,0.77634]
[1736846650652,1.20224,3222.4,3222.2,0.31044]
[1736846650955,1.20223,3222.4,3222.3,40.8]
[1736846651154,0.8918,3222.4,3221.8,3.2078]
[1736846651363,0.8918,3222.4,3222.3,2.44630527]
[1736846651660,0.8918,3222.4,3222.3,0.31044]
[1736846651847,0.8918,3222.4,3222.0,2.44630527]
[1736846652151,0.8918,3222.4,3222.2,0.31045]
[1736846652357,0.8918,3222.4,3222.1,0.31045]
[1736846652553,1.20224,3222.4,3222.3,40.8]
[1736846653355,0.8918,3222.4,3222.3,40.8]
[1736846653551,0.6228,3223.8,3223.1,0.31036]
[1736846653855,0.31033,3223.5,3223.3,2.96058289]
[1736846654053,0.31033,3223.5,3222.6,1.4]
[1736846654054,3.2078,3223.6,3222.6,3.2078]
[1736846654261,0.31035,3223.3,3222.7,0.3104]
[1736846654453,3.9199,3223.2,3222.6,6.16838289]
[1736846654757,0.7121,3223.2,3222.3,40.8]
[1736846654951,3.2078,3222.9,3222.3,40.8]
[1736846655157,0.31045,3222.2,3221.7,3.2078]
[1736846655357,0.7121,3222.1,3221.4,2.96058289]
[1736846655551,0.7121,3222.1,3221.8,40.8]
[1736846655755,3.2078,3222.4,3221.9,0.31048]
[1736846656061,3.2078,3222.8,3222.0,3.51826]
[1736846656355,3.2078,3222.8,3222.3,0.31043]
[1736846656655,0.7121,3222.9,3222.4,3.2078]
[1736846656854,0.7121,3222.9,3222.8,2.96058289]
[1736846657156,0.7372,3223.6,3223.1,0.31036]
[1736846657550,0.7372,3223.6,3222.9,0.31038]
[1736846657753,3.9114,3224.1,3223.5,40.8]
[1736846657955,3.9114,3224.1,3223.7,3.2078]
[1736846658249,3.2078,3224.5,3224.0,3.27085289]
[1736846658559,1.4408,3224.7,3224.1,3.2078]
[1736846658762,0.7036,3224.7,3224.4,2.96058289]
[1736846658955,0.703,3225.5,3224.6,3.2078]
[1736846659153,0.703,3225.5,3224.8,2.96058289]
[1736846659560,0.31015,3225.3,3225.2,40.8]
[1736846659762,3.51795,3225.3,3225.2,40.8]
[1736846660063,9.6068,3225.3,3224.1,3.2078]
[1736846660255,0.31025,3224.4,3224.1,3.2078]
[1736846660450,0.31019,3224.6,3224.1,3.2078]
[1736846660863,0.31021,3224.5,3224.1,3.2078]
[1736846661258,3.2078,3224.7,3224.1,3.2078]
[1736846661461,0.7158,3224.6,3224.1,3.2078]
[1736846661660,1.4147,3224.6,3224.1,3.2078]
[1736846662262,0.7158,3224.6,3224.1,3.51803]
[1736846662461,0.31021,3224.4,3224.2,40.8]
[1736846662661,0.7158,3224.6,3224.2,40.8]
[1736846663059,3.2078,3224.7,3224.2,40.8]
[1736846663461,0.3102,3224.5,3224.2,40.8]
[1736846663761,0.7142,3225.0,3224.3,2.96058289]
[1736846663964,0.31014,3225.1,3224.7,3.27075289]
[1736846664159,3.2078,3225.6,3224.7,2.96058289]
[1736846664362,3.2078,3226.4,3225.4,3.2078]
[1736846664560,0.6931,3227.1,3226.2,3.2078]
[1736846664861,3.9252,3227.4,3226.4,0.31002]
[1736846665165,3.2078,3227.0,3226.2,3.2078]
[1736846665368,0.31003,3226.3,3226.2,3.2078]
[1736846665571,3.2078,3226.6,3225.6,3.2078]
[1736846665868,3.65468289,3226.9,3226.0,3.2078]
[1736846665869,1.43,3226.9,3226.0,3.2078]
[1736846666062,0.31201,3226.5,3226.4,40.8]
[1736846666468,8.27259289,3226.5,3226.4,40.8]
[1736846666763,8.27259289,3226.5,3225.5,3.2078]
[1736846666764,0.31006,3226.0,3225.5,3.5179]
[1736846666969,0.31007,3225.9,3225.5,3.2078]
[1736846667272,0.31006,3225.9,3225.6,40.8]
[1736846667466,0.31006,3226.0,3225.6,40.8]
[1736846667771,0.7196,3226.4,3225.9,3.2078]
[1736846667963,0.002,3226.5,3225.9,3.2078]
[1736846668164,0.31004,3226.2,3225.9,3.2078]
[1736846668358,0.31005,3226.0,3225.9,3.2078]
[1736846668560,0.31005,3226.1,3225.9,3.2078]
[1736846668863,4.46193059,3226.5,3225.4,3.2078]
[1736846669063,3.2078,3226.2,3225.4,3.2078]
[1736846669259,0.31008,3225.8,3225.4,3.2078]
[1736846669466,3.2078,3226.2,3225.4,3.2078]
[1736846669665,0.7263177,3226.5,3225.4,3.2078]
[1736846670060,0.3101,3225.6,3225.4,3.2078]
[1736846670261,3.98291,3226.2,3225.4,3.2078]
[1736846670462,0.3101,3225.6,3225.4,3.2078]
[1736846670758,0.3101,3225.5,3225.4,3.2078]
[1736846671262,3.2078,3226.2,3225.5,0.3101]
[1736846671464,0.31007,3225.9,3225.6,3.27067289]
[1736846671664,0.31007,3225.8,3225.6,2.96058289]
[1736846671865,3.98291,3226.2,3225.4,3.2078]
[1736846672066,3.2078,3226.2,3225.4,3.2078]
[1736846672267,0.3101,3225.6,3225.4,3.2078]
[1736846672474,0.31009,3225.7,3225.4,3.51791]
[1736846672675,0.31009,3225.6,3225.5,40.8]
[1736846673372,3.2078,3226.2,3225.5,40.8]
[1736846673576,0.31009,3225.6,3225.5,40.8]
[1736846673877,3.2078,3226.2,3225.5,40.8]
[1736846674278,0.31009,3225.6,3225.5,40.8]
[1736846674882,3.2078,3226.2,3225.5,40.8]
[1736846675079,3.2078,3226.2,3226.1,3.2078]
[1736846675080,0.31004,3226.2,3226.1,3.2078]
[1736846675281,0.0067177,3226.5,3226.1,3.2078]
[1736846675487,0.30994,3227.2,3226.9,0.30996]
[1736846675777,3.51772,3227.4,3227.1,40.8]
[1736846675976,3.2078,3227.4,3227.1,43.76058289]
[1736846676179,3.9235,3227.9,3227.1,46.96838289]
[1736846676385,0.3099,3227.7,3227.6,2.96058289]
[1736846676577,0.7157,3227.9,3227.1,40.8]
[1736846676878,0.30994,3227.2,3227.1,40.8]
[1736846677185,0.30994,3227.2,3226.5,3.2078]
[1736846677186,0.31,3226.6,3226.5,3.2078]
[1736846677689,0.31005,3226.0,3225.9,3.2078]
[1736846677876,0.31007,3225.9,3225.5,3.2078]
[1736846678075,0.31009,3225.6,3225.5,3.2078]
[1736846678384,3.2078,3226.1,3225.1,3.2078]
[1736846678592,0.31013,3225.3,3225.1,3.2078]
[1736846678886,0.31013,3225.2,3225.1,3.2078]
[1736846679278,2.0402,3226.0,3225.1,3.2078]
[1736846679473,0.31006,3225.9,3225.6,0.31009]
[1736846679687,0.31003,3226.3,3226.0,0.31005]
[1736846679880,0.31003,3226.3,3225.5,3.2078]
[1736846679881,0.31002,3226.4,3226.1,0.31004]
[1736846680080,3.2078,3226.9,3225.9,3.2078]
[1736846680286,0.31,3226.6,3226.3,3.51782]
[1736846680479,0.30998,3226.9,3226.6,0.30999]
[1736846680681,0.30997,3226.9,3226.5,0.31001]
[1736846680884,0.6675,3227.1,3226.4,3.51781]
[1736846681179,0.31001,3226.5,3226.4,3.2078]
[1736846681580,0.31004,3226.2,3225.9,3.51786]
[1736846681780,0.7503,3226.8,3225.9,3.2078]
[1736846682290,3.2078,3226.9,3225.9,3.2078]
[1736846682582,1.08493,3226.8,3225.9,3.2078]
[1736846682784,0.30996,3227.0,3226.7,0.30998]
[1736846682990,0.30996,3227.0,3226.9,40.8]
[1736846683188,0.97746,3227.1,3226.9,40.8]
[1736846683385,3.2078,3227.4,3226.9,40.8]
[1736846683586,0.30994,3227.2,3227.0,0.30995]
[1736846683786,0.30996,3227.0,3226.9,40.8]
[1736846684882,3.51776,3227.0,3226.9,40.8]
[1736846685287,4.96186,3227.0,3226.9,40.8]
[1736846686580,3.51772,3227.5,3227.1,0.30994]
[1736846686780,3.2078,3227.5,3226.9,40.8]
[1736846686986,0.30993,3227.3,3227.0,0.30996]
[1736846687485,3.2078,3227.5,3226.9,40.8]
[1736846687790,0.30993,3227.3,3227.0,0.30995]
[1736846688194,0.30993,3227.3,3226.4,0.77503]
[1736846688195,0.7275,3227.6,3227.1,3.2078]
[1736846688490,0.30992,3227.5,3227.1,3.2078]
[1736846688689,0.30992,3227.5,3227.2,0.30993]
[1736846689092,0.30992,3227.5,3227.4,40.8]
[1736846689289,0.30991,3227.5,3227.4,40.8]
[1736846690490,3.51771,3227.5,3227.4,40.8]
[1736846690695,0.30991,3227.5,3227.4,40.8]
[1736846691691,3.51771,3227.5,3227.4,40.8]
[1736846694499,0.30991,3227.5,3227.4,40.8]
[1736846695991,1.4376,3227.7,3227.4,40.8]
[1736846696196,0.30993,3227.4,3227.1,3.51775]
[1736846696390,1.4376,3227.7,3227.1,3.51775]
[1736846696594,1.74749,3227.7,3227.6,40.8]
[1736846696894,0.7061,3227.8,3227.7,0.30989]
[1736846697104,0.7061,3227.8,3227.1,3.2078]
[1736846697301,0.3099,3227.7,3227.4,0.30991]
[1736846697504,1.01599,3227.8,3227.5,0.30991]
[1736846697801,1.01599,3227.8,3227.7,40.8]
[1736846699103,1.01599,3227.8,3227.7,40.3]
[1736846699104,3.96743506,3227.8,3227.7,40.3]
[1736846699402,1.01599,3227.8,3227.7,40.3]
[1736846701812,0.30988,3227.8,3227.7,40.3]
[1736846703005,0.67596789,3228.0,3227.7,40.3]
[1736846703202,0.00356789,3228.0,3227.4,6.15924506]
[1736846703705,0.31343789,3228.0,3227.9,40.8]
[1736846704104,0.00356789,3228.0,3227.9,41.10987]
[1736846704902,0.31342789,3228.0,3227.9,40.8]
[1736846705706,0.30995,3227.1,3227.0,3.2078]
[1736846705915,0.00356789,3228.0,3227.0,6.93414506]
[1736846706211,0.30989,3227.8,3227.6,0.30989]
[1736846706503,0.00356789,3228.0,3227.4,6.46915506]
[1736846706705,0.30991,3227.6,3227.5,0.30991]
[1736846706906,0.30991,3227.5,3227.4,6.15924506]
[1736846707210,0.30991,3227.5,3227.4,44.0078]
[1736846707600,0.30991,3227.5,3227.4,40.8]
[1736846708000,3.2078,3227.8,3227.5,0.30989]
[1736846708311,3.51769,3227.8,3227.7,0.30989]
[1736846708707,0.3099,3227.7,3227.6,0.30989]
[1736846709009,0.30989,3227.7,3227.6,40.8]
[1736846709509,0.00356789,3228.0,3227.6,40.8]
[1736846709708,0.30985,3228.2,3228.1,0.30984]
[1736846710119,0.77454,3228.5,3227.9,2.95144506]
[1736846710408,0.77454,3228.5,3227.9,3.26130506]
[1736846710409,0.30986,3228.0,3227.9,3.26130506]
[1736846710711,0.30986,3228.1,3228.0,0.30985]
[1736846711508,0.30985,3228.2,3228.1,0.30984]
[1736846711811,0.30986,3228.1,3228.0,0.30985]
[1736846712613,0.30986,3228.1,3228.0,41.10985]
[1736846712908,0.30982,3228.5,3228.4,0.30981]
[1736846713114,0.3098,3228.7,3228.6,0.30979]
[1736846713316,3.2078,3229.0,3228.4,0.30982]
[1736846713317,0.30982,3228.5,3228.4,0.30982]
[1736846713617,0.30982,3228.5,3228.4,41.10982]
[1736846714207,0.30982,3228.5,3228.4,40.8]
[1736846714406,0.30982,3228.5,3228.4,41.10982]
[1736846714905,0.30982,3228.5,3228.4,40.8]
[1736846716310,0.30982,3228.5,3227.9,3.2078]
[1736846716311,0.30986,3228.0,3227.9,3.2078]
[1736846716907,0.30993,3227.3,3227.0,3.2078]
[1736846717208,0.30993,3227.3,3227.2,40.8]
[1736846719812,3.2078,3227.5,3227.2,40.8]
[1736846720013,0.30992,3227.5,3227.3,0.30993]
[1736846720209,0.30993,3227.4,3227.2,41.10993]
[1736846720512,0.30993,3227.3,3227.2,40.8]
[1736846720718,1.09463,3227.3,3227.2,40.8]
[1736846721615,0.7847,3227.3,3227.2,41.10994]
[1736846721821,1.09463,3227.3,3227.2,41.10994]
[1736846722025,1.09463,3227.3,3227.2,40.8]
[1736846722824,0.30991,3227.5,3227.3,0.30992]
[1736846723017,0.30991,3227.6,3227.4,0.30991]
[1736846723218,0.30991,3227.5,3227.4,0.30991]
[1736846723417,0.30991,3227.5,3227.4,40.8]
[1736846726426,0.7847,3227.7,3227.6,0.3099]
[1736846726624,0.3099,3227.6,3227.0,6.93412506]
[1736846726923,0.7847,3227.7,3227.6,0.3099]
[1736846727121,0.7847,3227.7,3227.6,41.1099]
[1736846727319,0.7576,3228.0,3227.6,40.8]
[1736846727521,0.30989,3227.7,3227.6,40.8]
[1736846729125,0.30989,3227.7,3227.6,41.1099]
[1736846729324,3.2078,3228.8,3227.6,44.0078]
[1736846729528,2.22044,3229.8,3227.6,44.0078]
[1736846729529,0.30976,3229.1,3228.7,3.51759]
[1736846729821,0.30976,3229.1,3228.8,2.95144506]
[1736846730137,1.473,3229.2,3229.0,40.8]
[1736846730324,1.78275,3229.2,3229.0,40.8]
[1736846730533,0.30976,3229.1,3229.0,40.8]
[1736846730718,3.51756,3229.1,3229.0,40.8]
[1736846731219,1.0354,3229.6,3229.0,43.75144506]
[1736846731416,0.3105,3229.6,3229.0,44.0078]
[1736846731618,0.3105,3229.6,3229.0,40.8]
[1736846731824,0.30976,3229.1,3229.0,40.8]
[1736846732225,3.2078,3229.7,3229.0,40.8]
[1736846732429,2.22044,3229.8,3229.0,40.8]
[1736846732430,2.22044,3229.8,3229.7,0.3097]
[1736846732835,2.22044,3229.8,3229.7,1.0418]
[1736846733128,2.30434932,3230.2,3230.1,0.30966]
[1736846733327,2.30434932,3230.2,3230.1,44.06110506]
[1736846733729,2.30434932,3230.2,3230.1,49.06110506]
[1736846733932,3.2078,3231.8,3231.1,0.30956]
[1736846734126,3.2078,3231.8,3231.1,2.95144506]
[1736846734440,3.2078,3231.8,3231.0,3.2078]
[1736846734623,3.2078,3231.8,3231.4,2.95144506]
[1736846735228,3.2078,3231.8,3231.0,2.95144506]
[1736846735433,3.2078,3231.4,3231.0,2.95144506]
[1736846735733,0.30954,3231.4,3231.0,2.95144506]
[1736846736033,3.2078,3231.4,3231.0,2.95144506]
[1736846736228,0.30951,3231.7,3231.2,0.30955]
[1736846736421,3.2078,3231.8,3231.0,6.15924506]
[1736846736621,3.2078,3231.8,3231.3,0.30955]
[1736846736830,3.2078,3231.8,3231.4,2.95144506]
[1736846736831,0.30951,3231.7,3231.4,2.95144506]
[1736846737032,3.2078,3231.8,3231.4,2.95144506]
[1736846737233,3.2078,3231.8,3230.6,2.95144506]
[1736846737433,3.2078,3231.3,3230.6,2.95144506]
[1736846737639,0.30957,3231.1,3230.7,0.3096]
[1736846737834,3.2078,3231.3,3230.6,2.95144506]
[1736846738136,3.2078,3231.3,3231.0,3.26101506]
[1736846738334,0.3095,3231.8,3231.2,0.30955]
[1736846738535,0.30945,3232.3,3231.8,0.3095]
[1736846738726,3.2078,3233.1,3232.2,6.15924506]
[1736846739036,3.2078,3233.1,3232.7,2.95144506]
[1736846739534,3.2078,3234.1,3233.0,44.0078]
[1736846739726,3.2078,3234.1,3233.4,2.95144506]
[1736846739931,3.2078,3233.7,3233.4,3.26078506]
[1736846740126,3.2078,3233.7,3233.4,2.95144506]
[1736846740332,3.2078,3233.7,3233.0,40.8]
[1736846740535,1.5493,3233.6,3233.0,43.75144506]
[1736846740831,1.5493,3233.6,3233.0,46.95924506]
[1736846741031,3.51717,3233.2,3233.0,43.75144506]
[1736846741225,0.30934,3233.5,3233.0,43.74832735]
[1736846741429,3.2078,3234.2,3233.2,3.39702448]
[1736846741735,3.2078,3234.2,3233.0,40.79688229]
[1736846741736,0.30937,3233.1,3233.0,40.79688229]
[1736846741935,0.30937,3233.1,3232.5,3.2078]
[1736846742140,0.30939,3233.0,3232.5,3.2078]
[1736846742433,0.7626,3233.0,3232.6,0.30942]
[1736846742640,1.07199,3233.0,3232.9,40.8]
[1736846743038,0.7626,3233.0,3232.9,40.8]
[1736846743534,1.07198,3233.0,3232.9,40.8]
[1736846744739,1.07198,3233.0,3232.1,6.60482448]
[1736846744740,0.7626,3233.0,3232.1,6.60482448]
[1736846744938,3.2078,3232.8,3232.7,0.3094]
[1736846745151,0.7626,3233.0,3232.1,6.60482448]
[1736846745345,0.7626,3233.0,3232.8,0.3094]
[1736846745535,0.7626,3233.0,3232.2,0.30946]
[1736846745739,0.36053343,3233.0,3232.9,40.8]
[1736846745936,0.36053343,3233.0,3232.0,1.441]
[1736846745937,0.30949,3232.0,3231.7,3.2078]
[1736846746140,3.2078,3231.8,3231.0,3.2078]
[1736846746345,0.30951,3231.8,3231.0,3.2078]
[1736846746544,0.30948,3232.0,3231.6,0.30952]
[1736846746840,3.2078,3232.6,3231.8,3.2078]
[1736846747146,3.2078,3232.6,3232.5,40.8]
[1736846747351,0.3094,3232.9,3232.5,40.8]
[1736846747549,0.30942,3232.6,3232.5,40.8]
[1736846747746,0.05114343,3233.0,3232.5,40.8]
[1736846748249,0.30942,3232.7,3232.5,40.8]
[1736846748844,0.30942,3232.6,3232.5,40.8]
[1736846749236,5.30942,3232.6,3232.5,40.8]
[1736846749441,0.30955,3231.4,3230.9,3.70660448]
[1736846749647,3.2078,3232.0,3231.1,3.2078]
[1736846749843,3.2078,3232.5,3231.6,3.2078]
[1736846750143,0.30945,3232.4,3231.6,3.2078]
[1736846750340,3.2078,3232.3,3232.0,0.30948]
[1736846750540,2.21438,3233.4,3231.6,3.2078]
[1736846750541,3.2078,3232.7,3231.6,3.2078]
[1736846750745,0.30943,3232.6,3232.2,0.30946]
[1736846750947,3.51722,3232.7,3232.2,0.30946]
[1736846751144,3.51722,3232.7,3232.0,3.39702448]
[1736846751145,3.2078,3232.7,3232.0,3.39702448]
[1736846751345,30.37761,3236.6,3231.6,3.2078]
[1736846751346,3.2078,3233.6,3232.6,3.39702448]
[1736846751547,3.39702448,3235.2,3231.5,11.146]
[1736846751548,3.2078,3234.8,3233.5,3.98113]
[1736846751844,3.51702,3234.8,3234.4,0.30925]
[1736846752051,3.51702,3234.8,3234.3,3.70628448]
[1736846752248,3.2078,3235.2,3234.4,3.2078]
[1736846752546,3.2078,3235.2,3234.3,3.39702448]
[1736846752547,3.2078,3235.7,3235.1,40.8]
[1736846752845,3.2078,3235.7,3235.4,0.30915]
[1736846753042,3.2078,3235.7,3235.1,40.8]
[1736846753443,3.2078,3235.7,3235.3,0.30916]
[1736846753645,3.2078,3235.7,3235.2,0.30917]
[1736846753849,3.2078,3235.7,3235.4,0.30915]
[1736846754044,3.2078,3235.7,3235.1,40.8]
[1736846754350,0.30917,3235.2,3235.1,40.8]
[1736846755544,0.30917,3235.2,3233.9,3.2078]
[1736846755545,0.30929,3234.0,3233.9,3.2078]
[1736846755851,3.2078,3234.1,3233.5,3.2078]
[1736846756247,0.30922,3234.7,3234.1,0.30928]
[1736846756444,0.30924,3234.5,3234.4,40.8]
[1736846758342,0.8023,3235.1,3234.4,40.8]
[1736846758640,4.94257448,3236.0,3234.4,40.8]
[1736846758641,3.2078,3235.6,3234.8,3.2078]
[1736846759053,3.2078,3235.6,3234.8,6.60482448]
[1736846759242,0.30918,3235.2,3234.8,6.60482448]
[1736846759442,3.2078,3235.6,3234.8,6.60482448]
[1736846759654,3.2078,3235.6,3234.8,3.2078]
[1736846759849,3.2078,3235.6,3234.4,40.8]
[1736846759850,0.30923,3234.6,3234.4,44.0078]
[1736846760052,3.2078,3235.2,3234.4,44.0078]
[1736846760255,0.30924,3234.5,3234.4,40.8]
[1736846760958,0.30924,3234.5,3234.4,40.3]
[1736846761251,0.30924,3234.5,3234.4,39.8]
[1736846762058,0.7861,3235.0,3234.4,39.8]
[1736846762250,0.7861,3235.0,3234.0,3.2078]
[1736846762551,0.30923,3234.6,3234.5,3.2078]
[1736846762756,0.30923,3234.6,3234.5,40.8]
[1736846764554,5.30923,3234.6,3234.5,40.8]
[1736846764952,0.30923,3234.6,3234.5,40.8]
[1736846765156,3.2078,3234.7,3234.5,40.8]
[1736846765349,0.30923,3234.6,3234.5,40.8]
[1736846766953,5.30923,3234.6,3234.5,40.8]
[1736846767152,5.0,3234.6,3233.2,3.2078]
[1736846767356,3.2078,3233.9,3233.2,3.2078]
[1736846767665,0.30934,3233.5,3233.2,0.30936]
[1736846767865,3.2078,3233.5,3232.4,3.2078]
[1736846768052,0.77346,3233.0,3232.0,3.2078]
[1736846768252,0.758,3232.9,3232.0,3.2078]
[1736846768453,0.30944,3232.5,3232.2,0.30946]
[1736846768654,0.30944,3232.5,3232.4,40.8]
[1736846768655,0.30943,3232.5,3232.4,40.8]
[1736846769049,3.51723,3232.5,3232.4,40.8]
[1736846769349,0.30958,3231.0,3230.5,0.30962]
[1736846769561,0.30958,3231.0,3230.6,3.2078]
[1736846769757,3.39702448,3232.4,3230.4,3.39702448]
[1736846769758,3.2078,3231.6,3230.9,3.2078]
[1736846770055,0.30946,3232.2,3231.5,0.30952]
[1736846770250,1.495,3232.7,3231.4,3.39702448]
[1736846770251,3.2078,3231.9,3231.4,3.39702448]
[1736846770449,1.495,3231.8,3230.9,3.2078]
[1736846770651,0.30957,3231.1,3230.8,3.2078]
[1736846770961,0.30957,3231.1,3231.0,40.8]
[1736846772165,3.2078,3231.6,3231.0,40.8]
[1736846772559,0.30956,3231.1,3231.0,40.8]
[1736846773260,3.51736,3231.1,3231.0,40.8]
[1736846774456,3.51736,3231.1,3231.0,40.3]
[1736846775056,3.51736,3231.1,3230.0,3.2078]
[1736846775057,0.30966,3230.1,3230.0,3.2078]
[1736846775258,1.496,3230.8,3230.0,40.8]
[1736846775468,3.2078,3230.7,3230.0,40.8]
[1736846775652,0.30965,3230.2,3230.0,40.8]
[1736846775854,1.54716,3232.6,3230.0,40.8]
[1736846775855,3.2078,3231.7,3230.1,1.496]
[1736846776157,0.30946,3232.3,3231.7,0.3095]
[1736846776362,1.5517,3232.8,3232.0,3.2078]
[1736846776665,0.77331,3233.7,3232.6,0.30941]
[1736846776666,3.2078,3233.7,3232.6,0.30941]
[1736846776961,3.2078,3233.7,3232.4,3.2078]
[1736846777163,0.77329,3233.8,3232.4,3.51724]
[1736846777164,0.3094,3232.9,3232.4,3.51724]
[1736846777358,3.2078,3233.3,3232.4,3.2078]
[1736846777554,0.30939,3233.0,3232.5,0.30943]
[1736846777760,3.2078,3233.7,3232.9,3.2078]
[1736846778658,0.30933,3233.6,3233.1,0.30937]
[1736846778969,0.30933,3233.6,3233.5,40.8]
[1736846779160,3.2078,3233.7,3233.5,40.8]
[1736846779665,2.26917,3234.3,3233.5,40.8]
[1736846779666,0.30926,3234.3,3233.8,0.3093]
[1736846779966,0.30926,3234.3,3233.5,40.8]
[1736846779967,0.30928,3234.1,3233.5,3.2078]
[1736846780165,0.30926,3234.3,3233.7,0.30931]
[1736846780461,3.2078,3234.9,3234.2,40.8]
[1736846780863,3.2078,3234.9,3234.2,41.10927]
[1736846780864,0.30923,3234.7,3234.2,41.10927]
[1736846781161,3.2078,3234.9,3234.2,40.8]
[1736846781162,0.30926,3234.3,3234.2,40.8]
[1736846781352,3.98093,3234.5,3233.0,3.2078]
[1736846781553,3.2078,3234.1,3233.4,6.60482448]
[1736846781759,3.2078,3234.9,3233.8,3.2078]
[1736846781969,3.517,3234.9,3234.8,40.8]
[1736846782262,3.2078,3235.3,3234.8,40.8]
[1736846782658,0.3092,3234.9,3234.8,40.8]
[1736846783459,0.3092,3235.0,3234.8,40.8]
[1736846783663,0.3092,3234.9,3234.8,40.8]
[1736846784062,3.517,3234.9,3234.8,40.8]
[1736846784369,8.2078,3234.9,3233.8,3.2078]
[1736846784668,3.2078,3234.5,3233.8,3.2078]
[1736846785261,3.2078,3235.0,3234.3,40.8]
[1736846789270,1.525,3235.4,3234.3,40.8]
[1736846789271,3.2078,3234.6,3234.3,40.8]
[1736846789875,0.7913,3234.5,3234.3,40.8]
[1736846790573,3.39702448,3234.4,3234.3,40.8]
[1736846790762,3.39702448,3234.4,3234.3,40.3]
[1736846790961,8.39702448,3234.4,3232.8,3.2078]
[1736846791172,3.2078,3233.7,3232.8,3.2078]
[1736846791365,3.2078,3233.7,3232.8,6.60482448]
[1736846791564,3.2078,3234.3,3232.8,6.60482448]
[1736846791765,1.525,3234.4,3233.8,40.8]
[1736846792064,3.2078,3234.3,3233.8,40.8]
[1736846792672,0.7798,3234.9,3233.9,3.2078]
[1736846792864,3.2078,3235.2,3233.9,3.2078]
[1736846793569,3.2078,3234.8,3233.9,3.2078]
[1736846794263,3.2078,3234.2,3233.8,40.8]
[1736846794472,2.3307,3234.1,3233.8,40.8]
[1736846794671,3.2078,3234.2,3233.8,40.8]
[1736846795366,0.8057,3234.1,3233.8,40.8]
[1736846795562,3.2078,3234.2,3233.8,40.8]
[1736846795769,3.2078,3234.6,3233.8,40.8]
[1736846795971,3.2078,3235.0,3234.1,3.2078]
[1736846796177,3.2078,3235.0,3234.5,3.2078]
[1736846796675,3.2078,3235.0,3234.3,3.39702448]
[1736846796876,3.2078,3235.6,3234.5,3.2078]
[1736846797277,3.2078,3235.6,3235.5,40.8]
[1736846799769,1.08178,3236.2,3235.5,44.0078]
[1736846799970,1.08178,3236.2,3235.5,40.8]
[1736846799971,0.30913,3235.7,3235.5,40.8]
[1736846800273,0.30911,3235.8,3235.5,44.31694]
[1736846800569,0.30912,3235.7,3235.5,44.0078]
[1736846800970,0.7727,3236.2,3235.5,44.0078]
[1736846801173,3.2078,3236.3,3235.5,44.0078]
[1736846801373,0.30913,3235.6,3235.5,44.0078]
[1736846801978,0.77272,3236.1,3235.5,44.0078]
[1736846802169,0.30913,3235.6,3235.5,3.2078]
[1736846802778,0.30917,3235.2,3235.1,3.2078]
[1736846802974,0.30914,3235.5,3235.3,0.30915]
[1736846803179,0.30914,3235.6,3235.4,41.10914]
[1736846803377,3.2078,3236.2,3235.5,3.2078]
[1736846803571,0.30913,3235.6,3235.5,3.2078]
[1736846804272,0.30913,3235.6,3235.5,44.0078]
[1736846804772,3.2078,3236.2,3235.5,44.0078]
[1736846804979,0.30909,3236.1,3235.5,44.0078]
[1736846805195,0.30913,3235.6,3235.5,44.0078]
[1736846808169,0.30913,3235.6,3235.5,40.8]
[1736846808570,4.0447,3237.0,3235.6,0.77284]
[1736846808778,4.0447,3237.0,3236.6,0.30904]
[1736846808779,0.30902,3236.9,3236.6,0.30904]
[1736846808972,0.30902,3236.9,3236.1,3.98052]
[1736846809171,3.2078,3237.0,3236.1,3.2078]
[1736846809376,3.2078,3237.0,3236.2,1.524]
[1736846809576,3.2078,3237.7,3236.9,6.60482448]
[1736846809780,0.00361607,3238.0,3237.5,0.30895]
[1736846809983,3.2078,3239.0,3237.7,3.2078]
[1736846810175,2.84190932,3239.3,3238.5,0.30885]
[1736846810375,2.84190932,3239.3,3238.3,3.2078]
[1736846810576,2.84190932,3239.3,3238.8,3.2078]
[1736846810783,2.84190932,3239.3,3239.1,0.30879]
[1736846811083,2.84190932,3239.3,3239.2,40.8]
[1736846811380,3.15068932,3239.3,3239.2,40.8]
[1736846812083,8.34737295,3239.3,3239.2,40.3]
[1736846812280,3.81057295,3239.3,3238.3,3.2078]
[1736846812478,3.2078,3239.0,3238.3,3.2078]
[1736846812784,3.2078,3238.6,3237.8,3.2078]
[1736846812985,0.309,3237.1,3236.9,3.2078]
[1736846813279,0.30899,3237.2,3236.9,40.8]
[1736846813485,0.309,3237.0,3236.9,40.8]
[1736846813983,1.08132,3237.6,3236.9,40.8]
[1736846814176,0.309,3237.0,3236.9,40.8]
[1736846814378,0.77238,3237.6,3236.9,40.8]
[1736846814579,3.2078,3237.7,3236.9,40.8]
[1736846814775,3.2078,3238.1,3237.0,3.2078]
[1736846814980,0.30895,3237.5,3237.1,0.30898]
[1736846815177,0.30895,3237.6,3237.1,0.30899]
[1736846815381,6.3584,3238.5,3237.0,3.2078]
[1736846815582,3.2078,3237.8,3237.0,3.2078]